[Event "*** Titled Tuesday Blitz"]
[Site "Chess.com"]
[Date "2021.03.16"]
[Round "1"]
[White "AsaHoffmann"]
[Black "Abund"]
[Result "0-1"]
[WhiteElo "2358"]
[BlackElo "2699"]
[TimeControl "180+1"]
[EndTime "10:06:51 PDT"]
[Termination "Abund won by resignation"]

1. d4 {[%clk 0:02:55.9]} 1... Nf6 {[%clk 0:02:58.9]} 2. Bg5 {[%clk 0:02:54.2]}
2... d5 {[%clk 0:02:58.8]} 3. Nd2 {[%clk 0:02:51.6]} 3... h6 {[%clk 0:02:55.1]}
4. Bh4 {[%clk 0:02:50.6]} 4... Bf5 {[%clk 0:02:52.3]} 5. e3 {[%clk 0:02:49.8]}
5... e6 {[%clk 0:02:51]} 6. c4 {[%clk 0:02:47.4]} 6... c6 {[%clk 0:02:44.3]} 7.
Qb3 {[%clk 0:02:46.2]} 7... Qb6 {[%clk 0:02:32.5]} 8. c5 {[%clk 0:02:45.5]} 8...
Qc7 {[%clk 0:02:31.4]} 9. Bg3 {[%clk 0:02:44.4]} 9... Qc8 {[%clk 0:02:31.3]} 10.
Be2 {[%clk 0:02:43.7]} 10... Nbd7 {[%clk 0:02:31]} 11. h3 {[%clk 0:02:43]} 11...
Be7 {[%clk 0:02:31]} 12. Ngf3 {[%clk 0:02:42.7]} 12... b6 {[%clk 0:02:27.8]} 13.
cxb6 {[%clk 0:02:41]} 13... axb6 {[%clk 0:02:27.5]} 14. Rc1 {[%clk 0:02:40.6]}
14... Qb7 {[%clk 0:02:18.1]} 15. O-O {[%clk 0:02:35.6]} 15... O-O {[%clk
0:02:17.8]} 16. a3 {[%clk 0:02:28.8]} 16... c5 {[%clk 0:02:12.2]} 17. Bb5 {[%clk
0:02:26.5]} 17... Rfc8 {[%clk 0:02:09.2]} 18. Bxd7 {[%clk 0:02:06.4]} 18... Nxd7
{[%clk 0:02:04.6]} 19. dxc5 {[%clk 0:01:57.6]} 19... Nxc5 {[%clk 0:02:03.3]} 20.
Qd1 {[%clk 0:01:51.5]} 20... Nd3 {[%clk 0:01:53.6]} 21. Rxc8+ {[%clk 0:01:44.8]}
21... Rxc8 {[%clk 0:01:54.3]} 22. Qb3 {[%clk 0:01:43.9]} 22... Nc1 {[%clk
0:01:39.4]} 23. Qd1 {[%clk 0:01:33.2]} 23... Qa6 {[%clk 0:01:21.3]} 24. Nd4
{[%clk 0:01:30.9]} 24... Bg6 {[%clk 0:01:17.4]} 25. N2b3 {[%clk 0:01:15.9]}
25... Nd3 {[%clk 0:01:11.1]} 26. Qd2 {[%clk 0:01:10.8]} 26... Qc4 {[%clk
0:01:08.1]} 27. Na1 {[%clk 0:00:55]} 27... Qa2 {[%clk 0:00:59.3]} 28. f4 {[%clk
0:00:25.3]} 28... Be4 {[%clk 0:00:53.7]} 29. f5 {[%clk 0:00:22.6]} 29... e5
{[%clk 0:00:48]} 30. Nf3 {[%clk 0:00:21.8]} 30... f6 {[%clk 0:00:47.1]} 31. Nh4
{[%clk 0:00:20.3]} 31... Qxb2 {[%clk 0:00:46.5]} 32. Qxb2 {[%clk 0:00:19.2]}
32... Nxb2 {[%clk 0:00:46.6]} 33. Ng6 {[%clk 0:00:18.5]} 33... Bxa3 {[%clk
0:00:46.7]} 34. Nb3 {[%clk 0:00:18.1]} 34... Nc4 {[%clk 0:00:42.3]} 35. Ra1
{[%clk 0:00:15.9]} 35... Kf7 {[%clk 0:00:36.6]} 36. h4 {[%clk 0:00:13.9]} 36...
Bxf5 {[%clk 0:00:36.4]} 0-1

[Event "*** Titled Tuesday Blitz"]
[Site "Chess.com"]
[Date "2021.03.16"]
[Round "1"]
[White "digilik"]
[Black "hypert"]
[Result "0-1"]
[WhiteElo "2239"]
[BlackElo "2570"]
[TimeControl "180+1"]
[EndTime "10:06:53 PDT"]
[Termination "hypert won on time"]

1. e4 {[%clk 0:02:59.3]} 1... c5 {[%clk 0:03:00.1]} 2. Nf3 {[%clk 0:02:58.9]}
2... Nc6 {[%clk 0:03:00.6]} 3. Bb5 {[%clk 0:02:57.8]} 3... e6 {[%clk 0:03:01]}
4. O-O {[%clk 0:02:55.4]} 4... Nge7 {[%clk 0:03:01.3]} 5. Re1 {[%clk 0:02:55.8]}
5... a6 {[%clk 0:03:01.4]} 6. Bf1 {[%clk 0:02:55.1]} 6... Ng6 {[%clk 0:02:59.7]}
7. c3 {[%clk 0:02:54]} 7... d5 {[%clk 0:02:58.8]} 8. e5 {[%clk 0:02:47.9]} 8...
Be7 {[%clk 0:02:55.4]} 9. d4 {[%clk 0:02:47.5]} 9... O-O {[%clk 0:02:55.3]} 10.
a3 {[%clk 0:02:32.1]} 10... c4 {[%clk 0:02:51.6]} 11. g3 {[%clk 0:02:28.6]}
11... Bd7 {[%clk 0:02:51.5]} 12. h4 {[%clk 0:02:27.4]} 12... f5 {[%clk
0:02:47.3]} 13. exf6 {[%clk 0:02:25.1]} 13... Bxf6 {[%clk 0:02:46.1]} 14. h5
{[%clk 0:02:11]} 14... Nge7 {[%clk 0:02:45.3]} 15. Bh3 {[%clk 0:02:07.7]} 15...
Qe8 {[%clk 0:02:18.5]} 16. Ng5 {[%clk 0:01:59.9]} 16... Bxg5 {[%clk 0:02:14.5]}
17. Bxg5 {[%clk 0:02:00.8]} 17... Qf7 {[%clk 0:02:14.6]} 18. Qe2 {[%clk
0:01:57.1]} 18... Nf5 {[%clk 0:02:14.1]} 19. Nd2 {[%clk 0:01:51.8]} 19... Rae8
{[%clk 0:02:11.8]} 20. Bf4 {[%clk 0:01:32.3]} 20... e5 {[%clk 0:01:56]} 21. dxe5
{[%clk 0:01:24.9]} 21... Nxg3 {[%clk 0:01:51.1]} 22. fxg3 {[%clk 0:01:25.8]}
22... Bxh3 {[%clk 0:01:50]} 23. Kh2 {[%clk 0:01:17.6]} 23... Bf5 {[%clk
0:01:46.6]} 24. h6 {[%clk 0:00:51.9]} 24... Bd3 {[%clk 0:01:41.3]} 25. Qg4
{[%clk 0:00:47.5]} 25... g6 {[%clk 0:01:29.8]} 26. Nf3 {[%clk 0:00:44.3]} 26...
Bf5 {[%clk 0:01:20.7]} 27. Qh4 {[%clk 0:00:43.4]} 27... Be4 {[%clk 0:01:06.2]}
28. Ng5 {[%clk 0:00:41.2]} 28... Qf5 {[%clk 0:01:06.6]} 29. e6 {[%clk
0:00:11.6]} 29... Ne5 {[%clk 0:00:59.5]} 30. Bxe5 {[%clk 0:00:10.3]} 30... Qxe5
{[%clk 0:00:59.8]} 31. Nxe4 {[%clk 0:00:09.1]} 31... dxe4 {[%clk 0:00:56.2]} 32.
Qxe4 {[%clk 0:00:09.3]} 32... Rf2+ {[%clk 0:00:54.9]} 33. Kh3 {[%clk 0:00:08.9]}
33... Qh5+ {[%clk 0:00:49.7]} 34. Qh4 {[%clk 0:00:08.8]} 34... Qf5+ {[%clk
0:00:49.9]} 35. g4 {[%clk 0:00:08]} 35... Qd3+ {[%clk 0:00:45.7]} 36. Qg3 {[%clk
0:00:03.9]} 36... Rf3 {[%clk 0:00:45.5]} 37. Rg1 {[%clk 0:00:03.7]} 37... Rxe6
{[%clk 0:00:43.1]} 0-1

[Event "*** Titled Tuesday Blitz"]
[Site "Chess.com"]
[Date "2021.03.16"]
[Round "1"]
[White "adriangschnitzer"]
[Black "C_K_G"]
[Result "1-0"]
[WhiteElo "2499"]
[BlackElo "2002"]
[TimeControl "180+1"]
[EndTime "10:06:58 PDT"]
[Termination "adriangschnitzer won by checkmate"]

1. e4 {[%clk 0:02:58]} 1... c5 {[%clk 0:02:58.9]} 2. a3 {[%clk 0:02:56.7]} 2...
d6 {[%clk 0:02:58.9]} 3. b4 {[%clk 0:02:56.7]} 3... cxb4 {[%clk 0:02:56.6]} 4.
axb4 {[%clk 0:02:57.6]} 4... e6 {[%clk 0:02:55.1]} 5. Bb2 {[%clk 0:02:56.4]}
5... Nf6 {[%clk 0:02:52.6]} 6. d3 {[%clk 0:02:53.9]} 6... Be7 {[%clk 0:02:51.9]}
7. g3 {[%clk 0:02:53.5]} 7... O-O {[%clk 0:02:51.6]} 8. Bg2 {[%clk 0:02:53.8]}
8... Qc7 {[%clk 0:02:46.4]} 9. Ne2 {[%clk 0:02:51.6]} 9... Nbd7 {[%clk
0:02:43.1]} 10. h4 {[%clk 0:02:49.9]} 10... a6 {[%clk 0:02:42.7]} 11. h5 {[%clk
0:02:49.3]} 11... h6 {[%clk 0:02:41.6]} 12. Nd2 {[%clk 0:02:47.6]} 12... Rb8
{[%clk 0:02:28.2]} 13. Nc4 {[%clk 0:02:40.7]} 13... b6 {[%clk 0:02:18.6]} 14.
Qd2 {[%clk 0:02:38.1]} 14... Bb7 {[%clk 0:02:16.3]} 15. f4 {[%clk 0:02:32.2]}
15... d5 {[%clk 0:02:13.8]} 16. Ne5 {[%clk 0:02:27.9]} 16... dxe4 {[%clk
0:01:59.9]} 17. Nxd7 {[%clk 0:02:24.9]} 17... Qxd7 {[%clk 0:01:48.2]} 18. O-O
{[%clk 0:01:56.7]} 18... exd3 {[%clk 0:01:42]} 19. cxd3 {[%clk 0:01:50.4]} 19...
Nxh5 {[%clk 0:01:30.9]} 20. Bh3 {[%clk 0:01:31.8]} 20... Qc6 {[%clk 0:01:17.6]}
21. Kh2 {[%clk 0:01:29.8]} 21... Rbd8 {[%clk 0:00:58.2]} 22. Nd4 {[%clk
0:01:26.5]} 22... Qd7 {[%clk 0:00:46.6]} 23. f5 {[%clk 0:01:23.3]} 23... e5
{[%clk 0:00:40]} 24. f6 {[%clk 0:01:23.3]} 24... Bxb4 {[%clk 0:00:19.5]} 25.
Qxb4 {[%clk 0:01:14.2]} 25... Qd5 {[%clk 0:00:17.7]} 26. fxg7 {[%clk 0:01:04.7]}
26... Nxg7 {[%clk 0:00:15.6]} 27. Nf5 {[%clk 0:00:58.4]} 27... Nxf5 {[%clk
0:00:14.2]} 28. Rxf5 {[%clk 0:00:58.2]} 28... Qxd3 {[%clk 0:00:13.4]} 29. Raf1
{[%clk 0:00:47.8]} 29... Rd6 {[%clk 0:00:09.3]} 30. Bxe5 {[%clk 0:00:43.6]}
30... Rg6 {[%clk 0:00:08.9]} 31. Qxf8+ {[%clk 0:00:28.4]} 31... Kxf8 {[%clk
0:00:07.8]} 32. Rxf7+ {[%clk 0:00:28.1]} 32... Ke8 {[%clk 0:00:08.7]} 33. Rf8+
{[%clk 0:00:28.7]} 33... Ke7 {[%clk 0:00:09]} 34. R1f7# {[%clk 0:00:28]} 1-0

[Event "*** Titled Tuesday Blitz"]
[Site "Chess.com"]
[Date "2021.03.16"]
[Round "1"]
[White "Cptn2"]
[Black "jraosam"]
[Result "1-0"]
[WhiteElo "2497"]
[BlackElo "1878"]
[TimeControl "180+1"]
[EndTime "10:07:01 PDT"]
[Termination "Cptn2 won on time"]

1. e4 {[%clk 0:03:00.9]} 1... c5 {[%clk 0:02:53.4]} 2. Nf3 {[%clk 0:02:59.5]}
2... d6 {[%clk 0:02:51.8]} 3. d4 {[%clk 0:02:57.6]} 3... cxd4 {[%clk 0:02:52.7]}
4. Nxd4 {[%clk 0:02:58.5]} 4... Nf6 {[%clk 0:02:52.3]} 5. Nc3 {[%clk 0:02:58.9]}
5... g6 {[%clk 0:02:51.5]} 6. Be3 {[%clk 0:02:58.3]} 6... Bg7 {[%clk 0:02:48.2]}
7. f3 {[%clk 0:02:58.9]} 7... Nc6 {[%clk 0:02:45.2]} 8. Qd2 {[%clk 0:02:58.8]}
8... Bd7 {[%clk 0:02:40.2]} 9. g4 {[%clk 0:02:55.3]} 9... O-O {[%clk 0:02:37.9]}
10. h4 {[%clk 0:02:54.3]} 10... h5 {[%clk 0:02:36.6]} 11. Nxc6 {[%clk
0:02:20.6]} 11... bxc6 {[%clk 0:02:21.9]} 12. Bh6 {[%clk 0:02:19.3]} 12... Bxg4
{[%clk 0:01:51.8]} 13. fxg4 {[%clk 0:02:15]} 13... Nxg4 {[%clk 0:01:50.7]} 14.
Bxg7 {[%clk 0:02:14.5]} 14... Kxg7 {[%clk 0:01:51.6]} 15. Be2 {[%clk 0:02:10.7]}
15... Ne5 {[%clk 0:01:47.6]} 16. O-O-O {[%clk 0:02:06.7]} 16... Rb8 {[%clk
0:01:46]} 17. Rdg1 {[%clk 0:02:05.1]} 17... Rh8 {[%clk 0:01:34.6]} 18. Rg5
{[%clk 0:01:49.9]} 18... Qb6 {[%clk 0:01:20.9]} 19. Nd1 {[%clk 0:01:48.5]} 19...
f6 {[%clk 0:01:15.4]} 20. Rg3 {[%clk 0:01:47.3]} 20... Qb4 {[%clk 0:01:05.1]}
21. Qe3 {[%clk 0:01:37.3]} 21... Qa5 {[%clk 0:00:50]} 22. Kb1 {[%clk 0:01:34.7]}
22... Rb4 {[%clk 0:00:29]} 23. Rhg1 {[%clk 0:01:26.6]} 23... Qb6 {[%clk
0:00:19.8]} 24. Qd2 {[%clk 0:01:21.5]} 24... Rxe4 {[%clk 0:00:17.5]} 25. Bd3
{[%clk 0:01:21.3]} 25... Rg4 {[%clk 0:00:15.3]} 26. Ne3 {[%clk 0:01:15.1]} 26...
Rxg3 {[%clk 0:00:14.8]} 27. Rxg3 {[%clk 0:01:16]} 27... Rb8 {[%clk 0:00:13.8]}
28. c3 {[%clk 0:01:14.9]} 28... Kf7 {[%clk 0:00:11.2]} 29. Nc4 {[%clk
0:01:09.3]} 29... Nxc4 {[%clk 0:00:08.7]} 30. Bxc4+ {[%clk 0:01:10.2]} 30... d5
{[%clk 0:00:09.3]} 31. Bb3 {[%clk 0:01:09.1]} 31... a5 {[%clk 0:00:04.1]} 32.
Qd3 {[%clk 0:00:51.6]} 32... Rg8 {[%clk 0:00:03.8]} 33. Bc2 {[%clk 0:00:52.1]}
33... c5 {[%clk 0:00:02.6]} 34. Rxg6 {[%clk 0:00:51.4]} 34... c4 {[%clk
0:00:02.3]} 35. Qxd5+ {[%clk 0:00:49.3]} 35... e6 {[%clk 0:00:01.8]} 36. Qd7+
{[%clk 0:00:46.9]} 1-0

[Event "*** Titled Tuesday Blitz"]
[Site "Chess.com"]
[Date "2021.03.16"]
[Round "1"]
[White "LamaChampetre"]
[Black "Omk124"]
[Result "0-1"]
[WhiteElo "2227"]
[BlackElo "2555"]
[TimeControl "180+1"]
[EndTime "10:07:05 PDT"]
[Termination "Omk124 won on time"]

1. d4 {[%clk 0:02:52.1]} 1... Nf6 {[%clk 0:02:59.2]} 2. c4 {[%clk 0:02:49.8]}
2... g6 {[%clk 0:02:59.3]} 3. Nc3 {[%clk 0:02:48.2]} 3... d5 {[%clk 0:02:59.5]}
4. cxd5 {[%clk 0:02:46.6]} 4... Nxd5 {[%clk 0:03:00.4]} 5. e4 {[%clk 0:02:47.1]}
5... Nxc3 {[%clk 0:03:00.5]} 6. bxc3 {[%clk 0:02:48]} 6... Bg7 {[%clk
0:03:01.4]} 7. Be3 {[%clk 0:02:47.6]} 7... c5 {[%clk 0:03:00.4]} 8. Nf3 {[%clk
0:02:46.8]} 8... Qa5 {[%clk 0:03:00.1]} 9. Qd2 {[%clk 0:02:44.7]} 9... O-O
{[%clk 0:03:00]} 10. Rc1 {[%clk 0:02:42.8]} 10... Rd8 {[%clk 0:02:59.4]} 11. d5
{[%clk 0:02:39.9]} 11... e6 {[%clk 0:02:59.2]} 12. Bg5 {[%clk 0:02:38.4]} 12...
f6 {[%clk 0:02:59.2]} 13. Bf4 {[%clk 0:02:33.5]} 13... exd5 {[%clk 0:02:59.1]}
14. exd5 {[%clk 0:02:32.7]} 14... Nd7 {[%clk 0:02:59.2]} 15. Bh6 {[%clk
0:01:36.6]} 15... b6 {[%clk 0:02:54.9]} 16. Bc4 {[%clk 0:01:31.3]} 16... Re8+
{[%clk 0:02:54]} 17. Be3 {[%clk 0:01:26]} 17... Ba6 {[%clk 0:02:34.2]} 18. Bxa6
{[%clk 0:01:02.6]} 18... Qxa6 {[%clk 0:02:35.1]} 19. c4 {[%clk 0:01:02.7]} 19...
Ne5 {[%clk 0:02:21.7]} 20. Nxe5 {[%clk 0:00:59.9]} 20... Rxe5 {[%clk 0:02:22.6]}
21. O-O {[%clk 0:00:59.3]} 21... Re4 {[%clk 0:02:17.8]} 22. d6 {[%clk
0:00:58.1]} 22... Qb7 {[%clk 0:02:13.5]} 23. Rfd1 {[%clk 0:00:44.3]} 23... Rd8
{[%clk 0:02:12.5]} 24. Qd3 {[%clk 0:00:28.7]} 24... Bf8 {[%clk 0:02:10.8]} 25.
f3 {[%clk 0:00:16.9]} 25... Re6 {[%clk 0:01:51.6]} 26. d7 {[%clk 0:00:16.8]}
26... Re7 {[%clk 0:01:49.8]} 27. Qc3 {[%clk 0:00:16.7]} 27... Bg7 {[%clk
0:01:47.4]} 28. Bf4 {[%clk 0:00:12.5]} 28... Rexd7 {[%clk 0:01:47.2]} 29. Re1
{[%clk 0:00:12.4]} 29... f5 {[%clk 0:01:46.2]} 30. Be5 {[%clk 0:00:10.5]} 30...
Qc6 {[%clk 0:01:33.2]} 31. h3 {[%clk 0:00:09.3]} 31... Rd3 {[%clk 0:01:20]} 32.
Qb2 {[%clk 0:00:08.2]} 32... Rd2 {[%clk 0:01:18.7]} 33. Qc3 {[%clk 0:00:08.5]}
33... R8d3 {[%clk 0:01:12.9]} 34. Qa1 {[%clk 0:00:08]} 34... Bh6 {[%clk
0:01:06.6]} 35. Bf6 {[%clk 0:00:05.7]} 35... Rxg2+ {[%clk 0:01:05.4]} 36. Kh1
{[%clk 0:00:04.8]} 36... Qxf3 {[%clk 0:00:45.4]} 37. Re8+ {[%clk 0:00:03.5]}
37... Kf7 {[%clk 0:00:45.9]} 38. Re7+ {[%clk 0:00:03]} 38... Kf8 {[%clk
0:00:46.5]} 39. Rf7+ {[%clk 0:00:03]} 39... Kxf7 {[%clk 0:00:46.2]} 0-1

[Event "*** Titled Tuesday Blitz"]
[Site "Chess.com"]
[Date "2021.03.16"]
[Round "1"]
[White "VladaSviridova"]
[Black "Mikhail_Golubev"]
[Result "0-1"]
[WhiteElo "2226"]
[BlackElo "2552"]
[TimeControl "180+1"]
[EndTime "10:07:05 PDT"]
[Termination "Mikhail_Golubev won by resignation"]

1. d4 {[%clk 0:03:00.9]} 1... Nf6 {[%clk 0:02:59.5]} 2. c4 {[%clk 0:03:00.8]}
2... g6 {[%clk 0:02:59.3]} 3. Nc3 {[%clk 0:03:00.5]} 3... Bg7 {[%clk 0:02:59.7]}
4. e4 {[%clk 0:02:59.4]} 4... d6 {[%clk 0:02:59.7]} 5. Nf3 {[%clk 0:02:59.7]}
5... O-O {[%clk 0:03:00]} 6. Be2 {[%clk 0:03:00]} 6... e5 {[%clk 0:02:58.9]} 7.
O-O {[%clk 0:02:59.8]} 7... Nc6 {[%clk 0:02:58.9]} 8. d5 {[%clk 0:02:59.7]} 8...
Ne7 {[%clk 0:02:58.7]} 9. Ne1 {[%clk 0:03:00.4]} 9... Ne8 {[%clk 0:02:56.7]} 10.
Be3 {[%clk 0:03:01]} 10... f5 {[%clk 0:02:56.5]} 11. f3 {[%clk 0:03:01.7]} 11...
f4 {[%clk 0:02:56.8]} 12. Bf2 {[%clk 0:03:02.3]} 12... g5 {[%clk 0:02:57.1]} 13.
c5 {[%clk 0:02:59.8]} 13... Ng6 {[%clk 0:02:54.9]} 14. Rc1 {[%clk 0:02:53.4]}
14... Rf7 {[%clk 0:02:54.6]} 15. Nd3 {[%clk 0:02:49.5]} 15... h5 {[%clk
0:02:44.5]} 16. Kh1 {[%clk 0:02:45.5]} 16... Bf8 {[%clk 0:02:43.3]} 17. Rg1
{[%clk 0:02:42.3]} 17... Nf6 {[%clk 0:02:36.2]} 18. g3 {[%clk 0:02:40.6]} 18...
fxg3 {[%clk 0:02:30.2]} 19. Rxg3 {[%clk 0:02:40.3]} 19... g4 {[%clk 0:02:19.3]}
20. fxg4 {[%clk 0:02:34.5]} 20... Nxg4 {[%clk 0:02:07.5]} 21. Bg1 {[%clk
0:01:41.1]} 21... Bh6 {[%clk 0:01:48.5]} 22. Rc2 {[%clk 0:01:41]} 22... Rg7
{[%clk 0:01:30.4]} 23. h3 {[%clk 0:01:28.3]} 23... Qh4 {[%clk 0:01:29.1]} 24.
Qe1 {[%clk 0:01:06.7]} 24... Nf4 {[%clk 0:01:28.8]} 25. Rxg4 {[%clk 0:00:17.8]}
25... Rxg4 {[%clk 0:01:25]} 26. Qxh4 {[%clk 0:00:16.4]} 26... Rxh4 {[%clk
0:01:23.5]} 27. Nxf4 {[%clk 0:00:16.2]} 27... Bxf4 {[%clk 0:01:14.9]} 28. Bf1
{[%clk 0:00:16]} 28... Bxh3 {[%clk 0:01:11.5]} 29. Bf2 {[%clk 0:00:15.5]} 29...
Bxf1+ {[%clk 0:00:53.4]} 30. Bxh4 {[%clk 0:00:15.2]} 30... dxc5 {[%clk 0:00:48]}
31. Rf2 {[%clk 0:00:15.2]} 31... Bd3 {[%clk 0:00:44.3]} 32. Ne2 {[%clk
0:00:14.8]} 32... Bxe4+ {[%clk 0:00:43.1]} 33. Kg1 {[%clk 0:00:14]} 33... Be3
{[%clk 0:00:43.4]} 34. Kf1 {[%clk 0:00:13.8]} 34... Bxf2 {[%clk 0:00:42.8]} 35.
Kxf2 {[%clk 0:00:14]} 35... Bxd5 {[%clk 0:00:42.8]} 36. Ke3 {[%clk 0:00:14.2]}
36... Rf8 {[%clk 0:00:42.6]} 37. Nc3 {[%clk 0:00:14.2]} 37... c6 {[%clk
0:00:42.4]} 38. Be7 {[%clk 0:00:13.7]} 38... Rf3+ {[%clk 0:00:42]} 39. Ke2
{[%clk 0:00:14.2]} 39... Rh3 {[%clk 0:00:38.6]} 40. Bxc5 {[%clk 0:00:14.1]}
40... Rh2+ {[%clk 0:00:38]} 41. Ke3 {[%clk 0:00:13.6]} 41... Rxb2 {[%clk
0:00:36.3]} 42. Bxa7 {[%clk 0:00:13.5]} 42... h4 {[%clk 0:00:35.9]} 43. Bc5
{[%clk 0:00:12.1]} 43... h3 {[%clk 0:00:34.8]} 0-1

[Event "*** Titled Tuesday Blitz"]
[Site "Chess.com"]
[Date "2021.03.16"]
[Round "1"]
[White "ariosp"]
[Black "DvaHrasta"]
[Result "0-1"]
[WhiteElo "2192"]
[BlackElo "2530"]
[TimeControl "180+1"]
[EndTime "10:07:06 PDT"]
[Termination "DvaHrasta won on time"]

1. e4 {[%clk 0:03:00.9]} 1... c6 {[%clk 0:02:59.4]} 2. d4 {[%clk 0:02:59.9]}
2... d5 {[%clk 0:02:59.1]} 3. Nc3 {[%clk 0:02:59.4]} 3... dxe4 {[%clk
0:02:58.7]} 4. Nxe4 {[%clk 0:02:58.7]} 4... Nf6 {[%clk 0:02:58.5]} 5. Nxf6+
{[%clk 0:02:58.2]} 5... exf6 {[%clk 0:02:58.8]} 6. Bc4 {[%clk 0:02:58]} 6... Bd6
{[%clk 0:02:58.7]} 7. Qe2+ {[%clk 0:02:57.7]} 7... Qe7 {[%clk 0:02:58.8]} 8.
Qxe7+ {[%clk 0:02:55.3]} 8... Kxe7 {[%clk 0:02:59.1]} 9. Ne2 {[%clk 0:02:54]}
9... Be6 {[%clk 0:02:59.1]} 10. Bb3 {[%clk 0:02:50.5]} 10... a5 {[%clk
0:02:57.9]} 11. Bf4 {[%clk 0:02:41.8]} 11... a4 {[%clk 0:02:55.9]} 12. Bxe6
{[%clk 0:02:36.7]} 12... fxe6 {[%clk 0:02:54.2]} 13. O-O-O {[%clk 0:02:30.4]}
13... g5 {[%clk 0:02:52.1]} 14. Bxd6+ {[%clk 0:02:28.5]} 14... Kxd6 {[%clk
0:02:52.1]} 15. Rhe1 {[%clk 0:02:27.4]} 15... Nd7 {[%clk 0:02:44.5]} 16. Rd3
{[%clk 0:02:06.6]} 16... b5 {[%clk 0:02:37.5]} 17. Ng3 {[%clk 0:01:42.4]} 17...
f5 {[%clk 0:02:25.7]} 18. Rde3 {[%clk 0:01:35.4]} 18... Rae8 {[%clk 0:02:22.9]}
19. Nxf5+ {[%clk 0:01:31.5]} 19... Kc7 {[%clk 0:02:01.4]} 20. Ng7 {[%clk
0:01:30.5]} 20... Reg8 {[%clk 0:01:52.7]} 21. Nxe6+ {[%clk 0:01:29]} 21... Kb6
{[%clk 0:01:49.7]} 22. f3 {[%clk 0:01:18.5]} 22... h5 {[%clk 0:01:48.4]} 23. b3
{[%clk 0:01:09.6]} 23... axb3 {[%clk 0:01:43.6]} 24. axb3 {[%clk 0:01:07.3]}
24... b4 {[%clk 0:01:43.7]} 25. Kb2 {[%clk 0:01:01]} 25... Rh6 {[%clk
0:01:33.6]} 26. c4 {[%clk 0:00:43.3]} 26... bxc3+ {[%clk 0:01:32.3]} 27. Kxc3
{[%clk 0:00:43]} 27... Nf6 {[%clk 0:01:29.8]} 28. Re5 {[%clk 0:00:34.9]} 28...
Nd5+ {[%clk 0:01:27.2]} 29. Kc4 {[%clk 0:00:20.5]} 29... Ra8 {[%clk 0:01:22.7]}
30. Nc5 {[%clk 0:00:15.9]} 30... g4 {[%clk 0:01:10.4]} 31. R5e4 {[%clk
0:00:11.6]} 31... Ra2 {[%clk 0:01:04.3]} 32. R4e2 {[%clk 0:00:09.5]} 32... Rxe2
{[%clk 0:01:01.8]} 33. Rxe2 {[%clk 0:00:09]} 33... gxf3 {[%clk 0:00:59.4]} 34.
gxf3 {[%clk 0:00:08.8]} 34... Rg6 {[%clk 0:00:56.8]} 35. Re5 {[%clk 0:00:06]}
35... h4 {[%clk 0:00:52.4]} 36. Rh5 {[%clk 0:00:03.9]} 36... Ne3+ {[%clk
0:00:51.4]} 37. Kd3 {[%clk 0:00:02.4]} 37... Ng2 {[%clk 0:00:39.5]} 38. Rh7
{[%clk 0:00:01.5]} 38... Nf4+ {[%clk 0:00:36.8]} 0-1

[Event "*** Titled Tuesday Blitz"]
[Site "Chess.com"]
[Date "2021.03.16"]
[Round "1"]
[White "alexrustemov"]
[Black "Babas"]
[Result "1-0"]
[WhiteElo "2791"]
[BlackElo "2418"]
[TimeControl "180+1"]
[EndTime "10:07:10 PDT"]
[Termination "alexrustemov won on time"]

1. d4 {[%clk 0:03:00.9]} 1... Nf6 {[%clk 0:02:59.5]} 2. c4 {[%clk 0:03:00.6]}
2... c5 {[%clk 0:03:00]} 3. Nf3 {[%clk 0:03:00.6]} 3... cxd4 {[%clk 0:02:59.6]}
4. Nxd4 {[%clk 0:03:01.5]} 4... e5 {[%clk 0:02:55.4]} 5. Nb5 {[%clk 0:03:01.1]}
5... d5 {[%clk 0:02:54.7]} 6. cxd5 {[%clk 0:03:02]} 6... a6 {[%clk 0:02:50.3]}
7. N5c3 {[%clk 0:03:02]} 7... Bc5 {[%clk 0:02:40.4]} 8. h3 {[%clk 0:03:01.9]}
8... O-O {[%clk 0:02:39]} 9. g4 {[%clk 0:03:01.7]} 9... e4 {[%clk 0:02:14.6]}
10. Bg2 {[%clk 0:03:01]} 10... e3 {[%clk 0:02:10.9]} 11. Bxe3 {[%clk 0:03:00.4]}
11... Bxe3 {[%clk 0:02:08.2]} 12. fxe3 {[%clk 0:03:01.3]} 12... Re8 {[%clk
0:02:05.6]} 13. Qd4 {[%clk 0:02:59.9]} 13... Nbd7 {[%clk 0:01:47.7]} 14. Nd2
{[%clk 0:02:58.9]} 14... Ne5 {[%clk 0:01:46.9]} 15. O-O {[%clk 0:02:56.5]} 15...
Ng6 {[%clk 0:01:24.2]} 16. Nf3 {[%clk 0:02:44.7]} 16... Bd7 {[%clk 0:01:19.3]}
17. Rad1 {[%clk 0:02:36.1]} 17... Qe7 {[%clk 0:01:15.8]} 18. Rd3 {[%clk
0:02:32.5]} 18... Rad8 {[%clk 0:01:11.3]} 19. d6 {[%clk 0:02:32]} 19... Qf8
{[%clk 0:01:03.5]} 20. Nd5 {[%clk 0:02:05]} 20... Nxd5 {[%clk 0:00:55.7]} 21.
Qxd5 {[%clk 0:02:05.9]} 21... Bc6 {[%clk 0:00:48.9]} 22. Qd4 {[%clk 0:02:03.7]}
22... Re4 {[%clk 0:00:47.5]} 23. Qc5 {[%clk 0:01:59.7]} 23... Rde8 {[%clk
0:00:41.8]} 24. Nd2 {[%clk 0:01:59]} 24... R4e5 {[%clk 0:00:41.4]} 25. Qd4
{[%clk 0:01:56.8]} 25... Bxg2 {[%clk 0:00:39.9]} 26. Kxg2 {[%clk 0:01:57.7]}
26... R5e6 {[%clk 0:00:22.7]} 27. Nc4 {[%clk 0:01:45]} 27... Re4 {[%clk
0:00:16.8]} 28. Qd5 {[%clk 0:01:38]} 28... h5 {[%clk 0:00:16]} 29. Kg3 {[%clk
0:01:35.3]} 29... h4+ {[%clk 0:00:12.3]} 30. Kg2 {[%clk 0:01:34.7]} 30... b5
{[%clk 0:00:11.8]} 31. d7 {[%clk 0:01:32]} 31... bxc4 {[%clk 0:00:05.7]} 32.
dxe8=Q {[%clk 0:01:25.8]} 32... Qxe8 {[%clk 0:00:06.6]} 33. Rc3 {[%clk
0:01:22.4]} 33... Rxe3 {[%clk 0:00:06.9]} 34. Rxe3 {[%clk 0:01:20.7]} 34... Qxe3
{[%clk 0:00:07.8]} 35. Qxf7+ {[%clk 0:01:21.1]} 35... Kh7 {[%clk 0:00:08.3]} 36.
Qf3 {[%clk 0:01:19.6]} 36... Qe5 {[%clk 0:00:08]} 37. Qc3 {[%clk 0:01:12.8]}
37... Qxe2+ {[%clk 0:00:04.7]} 38. Rf2 {[%clk 0:01:12.8]} 38... Nf4+ {[%clk
0:00:04.1]} 39. Kg1 {[%clk 0:01:03.7]} 39... Qd1+ {[%clk 0:00:03.9]} 40. Kh2
{[%clk 0:01:02.2]} 40... Ne2 {[%clk 0:00:02.3]} 41. Rxe2 {[%clk 0:00:50.4]}
41... Qxe2+ {[%clk 0:00:03.2]} 42. Kg1 {[%clk 0:00:51]} 42... Qd1+ {[%clk
0:00:02.3]} 43. Kf2 {[%clk 0:00:51.3]} 43... Qb1 {[%clk 0:00:01.5]} 44. a3
{[%clk 0:00:49.8]} 44... Qe4 {[%clk 0:00:01.6]} 45. Qe3 {[%clk 0:00:46]} 45...
Qc2+ {[%clk 0:00:01.5]} 46. Qe2 {[%clk 0:00:46.3]} 1-0